Workbook

Sheet Budget Summary
A2: Attachment B - Budget Worksheets
A19: FY2022 Emerging Adults Reentry Initiative Technical Assistance Provider
A22: Cost Categories | B22: State Share | D22: Total
A25: Personnel Costs | B25: ='Budget Detail'!E13 -> 0 | D25: =B25 -> 0
A27: Fringe Costs | B27: ='Budget Detail'!E23 -> 0 | D27: =B27 -> 0
A29: Consultants/Contractors Costs | B29: ='Budget Detail'!E33 -> 0 | D29: =B29 -> 0
A31: Equipment Costs | B31: ='Budget Detail'!E43 -> 0 | D31: =B31 -> 0
A33: Travel Costs | B33: ='Budget Detail'!E53 -> 0 | D33: =B33 -> 0
A35: Supplies Costs | B35: ='Budget Detail'!E63 -> 0 | D35: =B35 -> 0
A37: Other Costs | B37: ='Budget Detail'!E73 -> 0 | D37: =B37 -> 0
A39: Total | B39: =B25+B27+B29+B31+B33+B35+B37 -> 0 | D39: =D25+D27+D29+D31+D33+D35+D37 -> 0
A42: Name of Applicant Organization

Sheet Budget Detail
A1: Executive Office of Public Safety and Security
A2: Office of Grants and Research
A3: Justice & Prevention Division
A4: =CONCATENATE("Budget Worksheets - ",'Budget Summary'!B42) -> Budget Worksheets -
A6: PERSONNEL: Full or part-time regular salaried employees working on the grant. A copy of staff resume(s) and/or job descriptions must be included in the applicant's response. Click the "Add Personnel" button to add a new record. To delete an unwanted record, click into the cell that you want to delete, and click the "Delete Row" button.
A8: Employee Name | B8: Pay Rate | C8: Quantity | D8: Description | E8: Total Cash Expenditures
A9: Example: Sue Smith | B9: 23.4875 | C9: 300 | D9: Advocate worked a total of 300 hours during the QTR at $23.4875/hr. (300 hours cash) | E9: =IF(B9="","",ROUND(B9,4)*ROUND(C9,2)) -> 7046.25
A10: Example: Tracey Thomas | B10: 1730.77 | C10: 6 | D10: $1730.77 per pay period x 6 pay periods | E10: =IF(B10="","",ROUND(B10,4)*ROUND(C10,2)) -> 10384.62
E11: =IF(B11="","",ROUND(ROUND(B11,4)*ROUND(C11,2),2)) -> 
E12: =IF(B12="","",ROUND(ROUND(B12,4)*ROUND(C12,2),2)) -> 
A13: Subtotal: | E13: =SUM(OFFSET(Personnel,5,4):OFFSET(Fringe,-4,4)) -> 0
A16: FRINGE AND PAYROLL TAX: Eligible costs include the employer share of the following: life insurance, health insurance, social security costs, pension costs, unemployment insurance costs, workers compensation insurance, payroll taxes, FMLA. Cost amounts for direct fringe benefits can be either actual costs or rates per employee calculated by the fiscal or human resource unit in your organization (rate computations must be included). A copy of the approved rate agreement should be included with the application response. This can be either a federally approved fringe rate or a breakout of what rates are being charged per eligible cost. Click the "Add Fringe" button to add a new record. To delete an unwanted record, click into the cell that you want to delete, and click the "Delete Row" button.
A18: Employee Name | B18: Wages Applied to Fringe | C18: Contract Fringe Rate | D18: Description | E18: Total Cash Expenditures
A19: Example: Sue Smith | B19: 7046.25 | C19: 0.21 | D19: Take Sue Smith's wages reported on this worksheet under the "Personnel" section and multiply by the federally approved fringe rate or the fringe rate that was proposed and approved by OGR in the application process. ($7,046.25 * 21%) | E19: =IF(B19="","",ROUND(B19,4)*ROUND(C19,4)) -> 1479.7125
A20: Example: Tracey Thomas | B20: 10384.62 | C20: 0.1 | D20: Take Tracey Thomas' wages reported on this worksheet under the "Personnel" section and multiply by the breakout of what rates are being charged per eligible cost. (7.5% - health insurance, 2% - life insurance, .5% - workers compensation) | E20: =IF(B20="","",ROUND(B20,4)*ROUND(C20,4)) -> 1038.462
E21: =IF(B21="","",ROUND(ROUND(B21,4)*ROUND(C21,4),2)) -> 
E22: =IF(B22="","",ROUND(ROUND(B22,4)*ROUND(C22,4),2)) -> 
A23: Subtotal: | E23: =SUM(OFFSET(Fringe,5,4):OFFSET(Contractors,-4,4)) -> 0
A26: CONTRACTORS/CONSULTANTS: List each subcontractor and/or consultant along with their rate. The maximum rate for consultants is $650 for an eight-hour day or $81.25 per hour (excluding travel and subsistence costs). Any request for compensation over $650 per day hour day or $81.25 per hour requires prior written approval by EOPSS. Requests for a waiver of this requirement, with documented justification, must be made in writing at the time of application. A competitive process based on the municipality’s procurement policy should be followed when procuring contracted services. Contract salary, fringe benefit, travel, and other costs should be placed within this category and follow instructions within personnel, fringe, travel and other cost categories. Click the "Add C/C" button to add a new record. To delete an unwanted record, click into the cell that you want to delete, and click the "Delete Row" button.
A28: Contractors/Consultants Name | B28: Pay Rate | C28: Quantity | D28: Description | E28: Total Cash Expenditures
A29: Example: JJ Counseling | B29: 200 | C29: 24 | D29: Counseling of domestic violence survivors; $200 per day x 24 days | E29: =IF(B29="","",ROUND(B29,4)*ROUND(C29,2)) -> 4800
A30: Example: B & B Tech Support | B30: 45 | C30: 210 | D30: Installation of database and training; $45 per hour x 210 hours | E30: =IF(B30="","",ROUND(B30,4)*ROUND(C30,2)) -> 9450
E31: =IF(B31="","",ROUND(ROUND(B31,4)*ROUND(C31,2),2)) -> 
E32: =IF(B32="","",ROUND(ROUND(B32,4)*ROUND(C32,2),2)) -> 
A33: Subtotal: | E33: =SUM(OFFSET(Contractors,5,4):OFFSET(Equipment,-4,4)) -> 0
A36: EQUIPMENT: List the purchases of tangible non-expendable personal property having a useful life of more than one year. Equipment must be directly related to the program implementation. Please see the AGF for more specific Equipment guidelines. Click the "Add Equipment" button to add a new record. To delete an unwanted record, click into the cell that you want to delete, and click the "Delete Row" button.
A38: Equipment | B38: Cost | C38: Quantity | D38: Description | E38: Total Cash Expenditures
A39: Example: Laptop | B39: 1200 | C39: 1 | D39: Dell 1000 Laptop. Purchased (1) laptop at a rate of $1200. | E39: =IF(B39="","",ROUND(B39,4)*ROUND(C39,2)) -> 1200
A40: Example: Computer Keyboard | B40: 50 | C40: 3 | D40: Replacement keyboard, IBM part #872021. Purchased (3) keyboards at $50/each | E40: =IF(B40="","",ROUND(B40,4)*ROUND(C40,2)) -> 150
E41: =IF(B41="","",ROUND(ROUND(B41,4)*ROUND(C41,2),2)) -> 
E42: =IF(B42="","",ROUND(ROUND(B42,4)*ROUND(C42,2),2)) -> 
A43: Subtotal: | E43: =SUM(OFFSET(Equipment,5,4):OFFSET(Travel,-4,4)) -> 0
A46: TRAVEL: This must be travel directly related to the purpose of the grant. In-state travel costs associated with the grant shall include mileage rates not in excess of $0.45 per mile, as well as the actual costs of tolls and parking. No grant funds may be spent for out of state conference fees, out of state travel or out of state lodging without prior written approval from OGR. Click the "Add Travel" button to add a new record. To delete an unwanted record, click into the cell that you want to delete, and click the "Delete Row" button.
A48: Employee Name | B48: Rate | C48: Quantity | D48: Description | E48: Total Cash Expenditures
A49: Example: Sue Smith | B49: 17 | C49: 1 | D49: Parking for DV roundtable on 2/7/18 | E49: =IF(B49="","",ROUND(B49,4)*ROUND(C49,2)) -> 17
A50: Example: Tracey Thomas | B50: 0.45 | C50: 200 | D50: Travel related to DV cases; $0.45/mile x 200 miles | E50: =IF(B50="","",ROUND(B50,4)*ROUND(C50,2)) -> 90
E51: =IF(B51="","",ROUND(ROUND(B51,4)*ROUND(C51,2),2)) -> 
E52: =IF(B52="","",ROUND(ROUND(B52,4)*ROUND(C52,2),2)) -> 
A53: Subtotal: | E53: =SUM(OFFSET(Travel,5,4):OFFSET(Supplies,-4,4)) -> 0
A56: SUPPLIES: List the purchases of supplies required for program (pens, pencils, postage, training materials, copying paper, and other expendable items such as books, ink, etc.). Click the "Add Supplies" button to add a new record. To delete an unwanted record, click into the cell that you want to delete, and click the "Delete Row" button.
A58: Supplies/Company | B58: Cost | C58: Quantity | D58: Description | E58: Total Cash Expenditures
A59: Example: Copy Paper | B59: 50 | C59: 4 | D59: $50.00/box, 4 boxes | E59: =IF(B59="","",ROUND(B59,4)*ROUND(C59,2)) -> 200
A60: Example: ABC Office Supply | B60: 75 | C60: 1 | D60: 1 lot of office supplies (pens, staples, paperclips), $75/lot | E60: =IF(B60="","",ROUND(B60,4)*ROUND(C60,2)) -> 75
E61: =IF(B61="","",ROUND(B61,4)*ROUND(C61,2)) -> 
E62: =IF(B62="","",ROUND(B62,4)*ROUND(C62,2)) -> 
A63: Subtotal: | E63: =SUM(OFFSET(Supplies,5,4):OFFSET(Other,-4,4)) -> 0
A66: OTHER: List the purchases for other expenses not applicable in the aforementioned that were incurred due to this program implementation (e.g., telephone costs, training material costs). Click the "Add Other" button to add a new record. To delete an unwanted record, click into the cell that you want to delete, and click the "Delete Row" button.
A68: Item/Company | B68: Cost | C68: Quantity | D68: Description | E68: Total Cash Expenditures
A69: Example: Telephone | B69: 65 | C69: 3 | D69: Verizon: January-March at $65 per month | E69: =IF(B69="","",ROUND(B69,4)*ROUND(C69,2)) -> 195
A70: Example: Heat | B70: 3200 | C70: 0.25 | D70: Total bill for office for quarter was $3,200.00; this program is 1/4 of office space | E70: =IF(B70="","",ROUND(B70,4)*ROUND(C70,2)) -> 800
E71: =IF(B71="","",ROUND(B71,4)*ROUND(C71,2)) -> 
E72: =IF(B72="","",ROUND(B72,4)*ROUND(C72,2)) -> 
A73: Subtotal: | E73: =SUM(OFFSET(Other,5,4):OFFSET(GrandTotal,-3,4)) -> 0
A75: Grand Total: | E75: =ROUND(SUM(E13+E23+E33+E43+E53+E63+E73),2) -> 0
